bitfinex/quotes_SOLUSD_20260302
["timestamp","ask_amount","ask_price","bid_price","bid_amount"]
[1772423061162,2.37610901,84.927,84.9,2.36951996]
[1772423061899,2.37610901,84.919,84.891,2.36951996]
[1772423062270,2.37610901,84.917,84.891,2.36951996]
[1772423062468,2.37610901,84.917,84.893,2.36951996]
[1772423062794,2.37610901,84.928,84.899,2.36951996]
[1772423064492,2.37610901,84.926,84.899,2.36951996]
[1772423065665,2.37610901,84.919,84.893,2.36951996]
[1772423066599,2.37610901,84.917,84.893,2.36951996]
[1772423068185,2.37610901,84.917,84.891,11.77970164]
[1772423068392,2.37610901,84.917,84.891,14.1492216]
[1772423068586,2.37610901,84.915,84.892,2.36951996]
[1772423069892,2.37610901,84.921,84.892,2.36951996]
[1772423070293,2.37610901,84.928,84.898,2.36951996]
[1772423070794,2.37610901,84.926,84.9,2.36951996]
[1772423072493,2.37610901,84.926,84.901,2.36951996]
[1772423073182,2.37610901,84.926,84.902,14.14780551]
[1772423076393,2.37610901,84.926,84.904,11.7780081]
[1772423076577,2.37610901,84.926,84.904,14.14752806]
[1772423080386,2.37610901,84.924,84.904,11.7780081]
[1772423080586,2.37610901,84.924,84.899,2.36951996]
[1772423080798,2.37610901,84.924,84.901,2.36951996]
[1772423082086,2.37610901,84.922,84.901,2.36951996]
[1772423082288,2.37610901,84.922,84.896,2.36951996]
[1772423082487,2.37610901,84.919,84.896,2.36951996]
[1772423085398,2.37610901,84.918,84.896,2.36951996]
[1772423085598,2.37610901,84.918,84.896,11.77909375]
[1772423085900,2.37610901,84.918,84.897,2.36951996]
[1772423087601,2.37610901,84.918,84.899,2.33969331]
[1772423088105,2.38005961,84.927,84.901,2.33969331]
[1772423089291,2.38005961,84.927,84.903,2.33969331]
[1772423091500,2.38005961,84.927,84.905,2.33969331]
[1772423093194,11.77495702,84.926,84.905,2.33969331]
[1772423093508,2.38005961,84.925,84.905,2.33969331]
[1772423094508,2.38005961,84.923,84.9,2.33969331]
[1772423097404,2.38005961,84.923,84.902,2.33969331]
[1772423097802,2.38005961,84.921,84.902,2.33969331]
[1772423099791,2.38005961,84.919,84.898,0.28432314]
[1772423100009,2.38005961,84.919,84.897,2.33969331]
[1772423100712,2.38005961,84.927,84.901,2.33969331]
[1772423101095,2.38005961,84.937,84.911,2.33969331]
[1772423101296,11.77329346,84.938,84.911,2.33969331]
[1772423101804,2.38005961,84.937,84.911,2.33969331]
[1772423102003,11.77357068,84.936,84.911,2.33969331]
[1772423102315,2.38005961,84.935,84.911,2.33969331]
[1772423103607,2.38005961,84.929,84.906,2.33969331]
[1772423104199,2.38005961,84.929,84.907,11.77759195]
[1772423104416,11.77467972,84.928,84.908,2.33969331]
[1772423104610,2.38005961,84.927,84.908,2.33969331]
[1772423106114,2.38005961,84.919,84.89,3.6533516]
[1772423106296,2.38005961,84.919,84.891,2.33969331]
[1772423107413,2.38005961,84.918,84.893,2.33969331]
[1772423109408,2.38005961,84.918,84.894,11.77939548]
[1772423109615,2.38005961,84.918,84.895,2.33969331]
[1772423110502,2.38005961,84.916,84.895,2.33969331]
[1772423113617,2.38005961,84.916,84.896,11.77911797]
[1772423113822,3.6533516,84.96,84.896,11.77911797]
[1772423113823,2.44430967,84.947,84.911,2.29417097]
[1772423114009,11.77232326,84.945,84.921,2.29417097]
[1772423114523,2.44430967,84.944,84.921,2.29417097]
[1772423115922,2.44430967,84.942,84.914,2.29417097]
[1772423116529,2.44430967,84.929,84.903,2.57849411]
[1772423117903,2.44430967,84.929,84.908,2.44783337]
[1772423121537,2.51861319,84.919,84.895,2.44783337]
[1772423122029,2.51861319,84.919,84.901,2.44783337]
[1772423122329,2.51861319,84.919,84.892,2.44783337]
[1772423123214,11.77606632,84.918,84.893,11.77953423]
[1772423123430,2.51861319,84.917,84.894,2.44783337]
[1772423126521,2.51861319,84.917,84.896,2.44783337]
[1772423131234,7.94242152,84.946,84.913,2.44783337]
[1772423131435,2.51861319,84.969,84.941,2.44783337]
[1772423131740,2.51861319,84.969,84.95,6.10118497]
[1772423133135,2.51861319,84.969,84.951,2.44783337]
[1772423138243,11.76797254,84.977,84.952,2.44783337]
[1772423138424,2.51861319,84.978,84.952,2.44783337]
[1772423139048,2.51861319,84.986,84.961,2.44783337]
[1772423139254,2.51861319,84.979,84.955,2.44783337]
[1772423139852,2.51861319,84.979,84.953,11.77121467]
[1772423139853,2.51861319,84.979,84.96,7.8]
[1772423140548,8.58408093,84.989,84.971,2.44783337]
[1772423140549,11.10269412,84.989,84.971,2.44783337]
[1772423140850,2.51861319,84.979,84.96,7.8]
[1772423141029,3.6533516,84.98,84.96,7.8]
[1772423141030,2.51861319,84.977,84.96,7.8]
[1772423141229,2.51861319,84.977,84.944,2.44783337]
[1772423141630,3.6533516,84.97,84.944,2.44783337]
[1772423141827,2.51861319,84.969,84.944,2.44783337]
[1772423142244,2.51861319,84.969,84.946,2.44783337]
[1772423144863,2.51861319,84.969,84.95,7.8]
[1772423145246,2.51861319,84.969,84.95,10.24783337]
[1772423146346,2.51861319,84.967,84.95,7.8]
[1772423147943,2.37222512,84.978,84.952,2.27736159]
[1772423148750,11.76765319,84.979,84.931,2.27736159]
[1772423148751,2.37222512,84.959,84.931,2.27736159]
[1772423149841,2.37222512,84.957,84.932,11.77412518]
[1772423150040,2.37222512,84.957,84.933,2.27736159]
[1772423150446,2.37222512,84.963,84.933,2.27736159]
[1772423152461,11.76996775,84.962,84.935,2.27736159]
[1772423154063,2.37222512,84.961,84.935,2.27736159]
[1772423154572,2.37222512,84.949,84.921,2.27736159]
[1772423154865,2.37222512,84.949,84.922,2.27736159]
[1772423156367,2.37222512,84.959,84.924,2.27736159]
[1772423157565,2.37222512,84.957,84.926,2.27736159]
[1772423160555,11.770799,84.956,84.927,11.77481837]
[1772423160756,2.37222512,84.955,84.928,2.27736159]
[1772423161054,2.37222512,84.965,84.927,41.2118643]
[1772423161264,2.37222512,84.968,84.941,2.27736159]
[1772423161649,2.37222512,84.968,84.93,3.65103527]
[1772423161650,2.37222512,84.959,84.931,2.27736159]
[1772423161870,3.65103527,84.95,84.925,2.27736159]
[1772423162169,2.37222512,84.949,84.925,2.27736159]
[1772423163468,11.77190751,84.948,84.925,2.27736159]
[1772423163772,2.37222512,84.947,84.925,2.27736159]
[1772423164966,3.65103527,84.95,84.925,2.27736159]
[1772423164967,2.37222512,84.945,84.925,2.27736159]
[1772423165167,2.37222512,84.945,84.92,2.27736159]
[1772423165669,2.37222512,84.945,84.921,2.27736159]
[1772423166165,15.42269888,84.95,84.921,2.27736159]
[1772423166371,11.77166361,84.95,84.921,2.27736159]
[1772423166571,2.37222512,84.949,84.921,2.27736159]
[1772423166874,2.37222512,84.949,84.923,2.27736159]
[1772423168360,2.37222512,84.947,84.923,2.27736159]
[1772423169273,2.37222512,84.945,84.923,2.27736159]
[1772423169572,2.37222512,84.945,84.92,6.4]
[1772423171261,2.37222512,84.943,84.92,6.4]
[1772423173377,2.37222512,84.941,84.92,6.4]
[1772423174372,2.3579039,84.939,84.92,6.4]
[1772423176467,15.42405151,84.94,84.92,6.4]
[1772423176468,2.3579039,84.937,84.92,6.4]
[1772423177075,2.3579039,84.937,84.911,2.51336195]
[1772423177976,2.3579039,84.937,84.907,2.43378877]
[1772423178354,2.41938431,84.935,84.907,2.43378877]
[1772423180174,2.41938431,84.933,84.907,2.43378877]
[1772423181287,2.41938431,84.928,84.907,2.43378877]
[1772423183273,11.77315485,84.939,84.911,2.43378877]
[1772423184668,14.19253916,84.939,84.913,2.43378877]
[1772423184880,2.41938431,84.938,84.913,2.43378877]
[1772423185479,2.41938431,84.929,84.908,2.43378877]
[1772423186277,2.41938431,84.919,84.888,0.28432314]
[1772423186483,2.41938431,84.917,84.889,2.43378877]
[1772423186865,2.41938431,84.909,84.889,2.43378877]
[1772423187066,2.41938431,84.909,84.886,11.78037257]
[1772423187285,2.41938431,84.909,84.886,14.21416134]
[1772423187483,2.41938431,84.899,84.857,2.43378877]
[1772423187667,2.41938431,84.899,84.84,0.2]
[1772423187668,2.41938431,84.889,84.861,2.43378877]
[1772423187981,2.41938431,84.879,84.844,2.43378877]
[1772423188183,2.41938431,84.879,84.848,2.43378877]
[1772423188381,2.41938431,84.879,84.844,2.43378877]
[1772423188578,2.41938431,84.869,84.845,14.21998713]
[1772423188887,3.65771191,84.87,84.846,2.43378877]
[1772423189464,2.41938431,84.869,84.842,2.43378877]
[1772423189666,3.65771191,84.87,84.842,2.43378877]
[1772423189667,2.41938431,84.865,84.842,2.43378877]
[1772423189982,2.41938431,84.898,84.859,2.43378877]
[1772423190662,2.41938431,84.896,84.861,2.43378877]
[1772423191373,2.41938431,84.889,84.861,2.43378877]
[1772423193183,2.41938431,84.889,84.86,18.18411501]
[1772423193184,2.41938431,84.909,84.877,2.43378877]
[1772423197191,2.41938431,84.909,84.879,2.43378877]
[1772423198491,2.41938431,84.909,84.881,2.43378877]
[1772423198880,2.41938431,84.907,84.881,2.43378877]
[1772423200482,2.41938431,84.899,84.88,11.78133836]
[1772423200684,11.77884049,84.898,84.875,14.21571874]
[1772423200896,2.41938431,84.897,84.87,11.78258963]
[1772423201280,2.41938431,84.897,84.871,2.43378877]
[1772423201965,2.41938431,84.889,84.868,2.43378877]
[1772423202182,2.41938431,84.889,84.869,2.43378877]
[1772423202785,11.77884049,84.898,84.863,2.43378877]
[1772423202786,2.41938431,84.887,84.863,2.43378877]
[1772423202987,2.41938431,84.893,84.863,2.43378877]
[1772423203489,47.05740743,85.003,84.867,2.43378877]
[1772423203490,2.41938431,84.905,84.867,2.43378877]
[1772423204473,5.36086188,84.956,84.877,2.43378877]
[1772423204474,2.41938431,84.914,84.877,2.43378877]
[1772423204992,8.35964233,84.915,84.887,2.43378877]
[1772423205977,8.35964233,84.915,84.896,0.28432314]
[1772423206180,8.35964233,84.915,84.878,41.23565587]
[1772423206181,8.35964233,84.915,84.897,2.43378877]
[1772423206373,2.9947751,84.915,84.879,2.71811191]
[1772423207069,2.9947751,84.915,84.895,0.28432314]
[1772423207274,2.9947751,84.915,84.896,2.34892203]
[1772423209689,2.9947751,84.915,84.898,2.34892203]
[1772423210082,2.47345475,84.925,84.898,2.34892203]
[1772423210681,2.47345475,84.925,84.9,2.34892203]
[1772423211677,11.77431418,84.931,84.902,2.34892203]
[1772423211905,2.47345475,84.935,84.906,2.34892203]
[1772423214499,2.47345475,84.935,84.877,58.90837713]
[1772423214500,2.47345475,84.929,84.887,2.63324517]
[1772423214700,2.47345475,84.919,84.887,2.63324517]
[1772423215786,2.47345475,84.919,84.895,0.28432314]
[1772423215986,2.47345475,84.919,84.896,2.34892203]
[1772423216598,2.47345475,84.919,84.887,41.23128394]
[1772423216599,2.47345475,84.919,84.897,14.12790126]
[1772423217893,2.47345475,84.919,84.898,2.34892203]
[1772423218400,2.47345475,84.968,84.906,2.34892203]
[1772423218600,2.47345475,84.959,84.916,2.34892203]
[1772423218799,2.47345475,84.959,84.926,2.34892203]
[1772423219601,3.65376215,84.95,84.926,2.34892203]
[1772423219810,2.47345475,84.949,84.926,2.34892203]
[1772423220000,2.47345475,84.949,84.927,2.34892203]
[1772423220199,2.47345475,84.948,84.926,11.77487236]
[1772423220392,2.47345475,84.939,84.915,2.34892203]
[1772423220708,2.47345475,84.948,84.914,2.34892203]
[1772423220922,2.47345475,84.948,84.916,2.34892203]
[1772423221618,2.47345475,84.954,84.921,0.28432314]
[1772423221822,2.47345475,84.969,84.934,2.34892203]
[1772423222106,2.47345475,84.979,84.946,2.34892203]
[1772423223094,2.47345475,84.978,84.946,2.34892203]
[1772423224189,2.47345475,84.978,84.948,2.34892203]
[1772423225209,2.47345475,84.978,84.95,2.34892203]
[1772423225410,2.47345475,84.959,84.921,2.34892203]
[1772423225613,2.28841673,84.939,84.878,2.34892203]
[1772423225798,2.28841673,84.939,84.884,2.34892203]
[1772423226002,2.28841673,84.929,84.884,2.34892203]
[1772423226199,2.28841673,84.929,84.886,2.34892203]
[1772423226616,3.65376215,84.93,84.886,2.34892203]
[1772423226812,2.28835733,84.936,84.896,2.34892203]
[1772423227509,2.28835733,84.936,84.904,2.34892203]
[1772423227716,2.28835733,84.936,84.906,2.34892203]
[1772423229119,2.28835733,84.936,84.908,2.34892203]
[1772423229323,2.28824057,84.934,84.908,2.34892203]
[1772423230418,2.2881832,84.929,84.902,2.34892203]
[1772423230621,3.65376215,84.93,84.906,2.34892203]
[1772423230799,2.28841273,84.938,84.906,2.34892203]
[1772423231206,14.0618448,84.937,84.908,2.34892203]
[1772423233927,2.28930478,84.936,84.91,2.44124309]
[1772423234933,2.28952142,84.934,84.91,2.44124309]
[1772423235424,2.28952142,84.934,84.909,11.77731453]
[1772423235425,2.28952142,84.934,84.911,11.77703713]
[1772423235627,2.28952142,84.934,84.911,14.21828022]
[1772423235819,2.28952142,84.934,84.912,2.44124309]
[1772423236330,2.28973558,84.929,84.9,12.06288615]
[1772423236725,2.28973558,84.929,84.904,0.14216157]
[1772423236927,2.28973558,84.929,84.907,2.44124309]
[1772423237133,2.28973558,84.929,84.909,2.47371618]
[1772423238015,14.0640727,84.935,84.909,2.47371618]
[1772423238631,14.0640727,84.935,84.898,29.44710122]
[1772423238632,14.0640727,84.935,84.911,2.47371618]
[1772423238831,3.65376215,84.95,84.915,2.47371618]
[1772423239031,2.29056789,84.958,84.917,2.47371618]
[1772423239032,11.77112728,84.954,84.917,2.47371618]
[1772423239413,3.65376215,84.95,84.917,2.47371618]
[1772423239728,2.29056789,84.949,84.917,2.47371618]
[1772423240114,2.29077002,84.929,84.906,11.77771408]
[1772423241131,2.29096984,84.927,84.903,0.28432314]
[1772423242132,2.29096984,84.927,84.905,0.28432314]
[1772423242542,62.50519732,84.96,84.894,2.47371618]
[1772423242543,2.29136261,84.958,84.894,2.47371618]
[1772423242719,2.29136261,84.939,84.896,2.47371618]
[1772423244320,3.65376215,84.93,84.898,2.47371618]
[1772423244721,2.29155562,84.937,84.898,2.47371618]
[1772423246843,2.29212144,84.935,84.9,2.47371618]
[1772423247048,2.29212144,84.929,84.9,2.47371618]
[1772423247224,11.77357068,84.936,84.9,2.47371618]
[1772423247225,3.65376215,84.92,84.9,2.47371618]
[1772423248050,3.65376215,84.92,84.893,29.44883559]
[1772423248051,2.29230574,84.919,84.891,2.47371618]
[1772423248625,2.29230574,84.919,84.892,2.47371618]
[1772423248820,2.29230574,84.919,84.862,58.91917776]
[1772423248821,2.29248791,84.907,84.879,2.47371618]
[1772423249029,2.29248791,84.899,84.877,11.78175477]
[1772423249236,2.29248791,84.899,84.877,14.25547095]
[1772423249439,2.29248791,84.899,84.878,2.47371618]
[1772423250228,11.77884049,84.898,84.878,2.47371618]
[1772423252451,11.7780081,84.904,84.878,2.47371618]
[1772423252638,2.29319593,84.903,84.878,2.47371618]
[1772423253642,11.77828555,84.902,84.878,2.47371618]
[1772423256744,2.29387198,84.901,84.878,2.47371618]
[1772423257350,2.29387198,84.901,84.874,2.47371618]
[1772423257755,3.65376215,84.9,84.874,2.47371618]
[1772423257940,5.94779831,84.9,84.874,2.47371618]
[1772423258137,2.29403616,84.899,84.874,2.47371618]
[1772423258358,2.29403616,84.905,84.874,2.47371618]
[1772423259056,2.29419846,84.929,84.879,2.75803932]
[1772423259255,100.05470214,84.954,84.879,2.75803932]
[1772423259256,2.29419846,84.939,84.879,2.75803932]
[1772423259636,2.2943589,84.949,84.879,2.75803932]
[1772423260854,2.2943589,84.949,84.888,2.75803932]
[1772423261258,14.066425,84.948,84.89,2.75803932]
[1772423261441,14.066425,84.948,84.899,0.28432314]
[1772423261642,14.066425,84.948,84.906,2.47371618]
[1772423262364,2.29467426,84.947,84.916,2.47371618]
[1772423262863,2.29482924,84.939,84.91,2.47371618]
[1772423264657,11.77329346,84.938,84.912,2.47371618]
[1772423264861,2.29513386,84.937,84.912,2.47371618]
[1772423268254,2.29513386,84.937,84.913,14.28433676]
[1772423270648,2.29614628,84.935,84.913,14.28433676]
[1772423270853,2.29614628,84.935,84.903,2.50757702]
[1772423271057,2.29614628,84.935,84.905,2.50757702]
[1772423273676,2.29655573,84.933,84.905,2.50757702]
[1772423273969,2.29655573,84.929,84.899,2.50757702]
[1772423275072,2.29668909,84.927,84.901,2.50757702]
[1772423276076,2.29682092,84.934,84.901,2.50757702]
[1772423276575,14.07093779,84.933,84.901,2.50757702]
[1772423276870,2.29695124,84.932,84.901,2.50757702]
[1772423277076,11.77426381,84.931,84.902,11.77828555]
[1772423277277,2.29695124,84.93,84.903,2.50757702]
[1772423278581,2.29695124,84.93,84.905,2.50757702]
[1772423278779,11.77454108,84.929,84.905,2.50757702]
[1772423279083,2.29720739,84.928,84.905,2.50757702]
[1772423280673,2.29720739,84.928,84.907,2.50757702]
[1772423281675,11.77258888,84.944,84.907,2.50757702]
[1772423281882,2.2975807,84.943,84.907,2.50757702]
[1772423282184,2.2975807,84.939,84.907,2.50757702]
[1772423283187,11.77100341,84.955,84.915,2.50757702]
[1772423283445,11.77100341,84.955,84.917,2.50757702]
[1772423284115,11.77100341,84.955,84.918,11.77606632]
[1772423284318,2.29782248,84.969,84.919,2.79190016]
[1772423285022,2.29794129,84.959,84.919,2.79190016]
[1772423285712,2.29805873,84.939,84.913,2.50757702]
[1772423285910,3.65283824,84.94,84.913,2.50757702]
[1772423286116,2.29805873,84.949,84.917,2.50757702]
[1772423286315,15.42448507,84.95,84.919,2.50757702]
[1772423286823,11.77107783,84.954,84.927,2.50757702]
[1772423287518,2.29805873,84.955,84.927,2.50757702]
[1772423288319,2.29805873,84.955,84.918,41.21623212]
[1772423288320,14.06902078,84.955,84.929,2.50757702]
[1772423288704,2.29840304,84.954,84.929,2.50757702]
[1772423288906,3.65283824,84.94,84.923,2.50757702]
[1772423290116,2.29840304,84.949,84.923,2.50757702]
[1772423291107,14.07053355,84.948,84.923,2.50757702]
[1772423291710,2.29873562,84.947,84.923,2.50757702]
[1772423293004,2.29873562,84.947,84.916,2.50757702]
[1772423293206,2.29884394,84.945,84.916,2.50757702]
[1772423293432,2.29884394,84.945,84.918,2.50757702]
[1772423294421,2.29905687,84.945,84.91,2.31528857]
[1772423295329,2.2991615,84.943,84.912,2.31528857]
[1772423296024,3.65283824,84.94,84.912,2.31528857]
[1772423296228,2.29926493,84.939,84.912,2.31528857]
[1772423297428,14.0727617,84.938,84.914,2.42015506]
[1772423300139,14.0727617,84.938,84.916,2.42015506]
[1772423300934,3.65283824,84.94,84.916,2.42015506]
[1772423301137,3.65283824,84.95,84.916,2.42015506]
[1772423301533,11.77111118,84.954,84.923,0.14216157]
[1772423301836,11.77111118,84.954,84.926,2.42015506]
[1772423302419,2.29995644,84.954,84.928,2.42015506]
[1772423303842,3.65283824,84.95,84.928,2.42015506]
[1772423304242,2.30014395,84.949,84.922,14.19558044]
[1772423304447,3.65283824,84.95,84.911,2.7044782]
[1772423304743,2.30014395,84.949,84.911,2.7044782]
[1772423305633,2.30032719,84.955,84.911,2.7044782]
[1772423305855,3.65283824,84.96,84.911,2.7044782]
[1772423306037,5.95316543,84.96,84.911,2.7044782]
[1772423306226,2.30032719,84.959,84.911,2.7044782]
[1772423306939,14.07093913,84.958,84.926,2.42015506]
[1772423307341,2.30041723,84.957,84.926,2.42015506]
[1772423307730,11.770799,84.956,84.928,2.42015506]
[1772423309928,11.770799,84.956,84.93,2.42015506]
[1772423311239,11.770799,84.956,84.932,2.42015506]
[1772423311938,15.42312196,84.96,84.932,2.42015506]
[1772423312626,17.72397412,84.96,84.932,2.42015506]
[1772423313045,2.30093617,84.959,84.932,2.42015506]
[1772423313255,2.30093617,84.959,84.904,58.88977087]
[1772423313256,2.30093617,84.948,84.919,2.42015506]
[1772423313563,3.65283824,84.95,84.919,2.42015506]
[1772423313728,2.30101922,84.949,84.919,2.42015506]
[1772423314655,11.77190751,84.948,84.921,2.42015506]
[1772423315543,3.65283824,84.95,84.921,2.42015506]
[1772423316538,2.30110131,84.955,84.926,2.7044782]
[1772423317345,14.07233879,84.954,84.926,2.7044782]
[1772423318748,2.30142036,84.953,84.927,11.77481837]
[1772423319131,2.30142036,84.953,84.928,2.42015506]
[1772423321141,2.30142036,84.953,84.93,2.42015506]
[1772423321646,2.30165016,84.949,84.91,29.44279865]
[1772423321845,2.30165016,84.949,84.917,2.42015506]
[1772423322052,3.65283824,84.94,84.917,2.42015506]
[1772423322750,11.77229376,84.946,84.919,2.42015506]
[1772423323141,11.77161534,84.951,84.922,0.28432314]
[1772423323336,11.77161534,84.951,84.927,2.42015506]
[1772423325142,2.30172501,84.954,84.928,11.77467972]
[1772423325464,11.77038336,84.959,84.929,2.42015506]
[1772423325841,2.30194443,84.949,84.929,2.42015506]
[1772423327243,2.30194443,84.949,84.93,11.77440244]
[1772423327465,2.30194443,84.949,84.931,2.48060003]
[1772423327839,2.30215637,84.954,84.931,2.48060003]
[1772423328239,11.77043659,84.959,84.931,2.48060003]
[1772423329846,11.77043659,84.959,84.932,11.77412518]
[1772423330050,11.77043659,84.959,84.933,2.48060003]
[1772423330343,2.30229364,84.958,84.933,2.48060003]
[1772423330545,2.30229364,84.958,84.928,14.25523298]
[1772423330844,2.30229364,84.958,84.929,2.48060003]
[1772423331558,11.77066045,84.957,84.929,2.48060003]
[1772423331767,2.3023611,84.956,84.925,0.28432314]
[1772423331961,2.3023611,84.956,84.924,11.77521264]
[1772423332261,2.3023611,84.956,84.924,14.25581267]
[1772423332650,2.3023611,84.956,84.925,2.48060003]
[1772423333251,2.30249369,84.954,84.927,2.48060003]
[1772423334664,2.30249369,84.954,84.929,2.48060003]
[1772423336957,2.30249369,84.954,84.93,11.77440244]
[1772423337162,2.30249369,84.954,84.931,2.48060003]
[1772423337761,2.30281208,84.952,84.93,11.77440244]
[1772423338268,2.30281208,84.952,84.931,2.48060003]
[1772423339084,2.30281208,84.952,84.926,11.77491799]
[1772423339246,2.30281208,84.952,84.918,29.4401658]
[1772423339247,2.30287358,84.949,84.918,2.48060003]
[1772423339750,11.77086606,84.956,84.918,2.48060003]
[1772423339950,2.30293437,84.955,84.918,2.48060003]
[1772423341063,2.30293437,84.955,84.92,2.48060003]
[1772423341564,11.77025522,84.96,84.926,2.48060003]
[1772423341753,2.30305387,84.959,84.926,2.48060003]
[1772423343672,2.30305387,84.959,84.928,2.48060003]
[1772423345466,2.30305387,84.959,84.929,11.77454108]
[1772423345773,2.30305387,84.959,84.93,2.48060003]
[1772423346379,3.65090844,84.97,84.936,2.48060003]
[1772423346577,2.30328475,84.98,84.946,2.48060003]
[1772423347462,3.65090844,84.98,84.946,2.48060003]
[1772423347665,2.30334082,84.978,84.948,2.48060003]
[1772423348776,2.30334082,84.978,84.95,2.48060003]
[1772423350382,2.30334082,84.978,84.952,2.48060003]
[1772423351390,11.76622857,84.989,84.954,2.48060003]
[1772423351575,2.30355874,85.011,84.973,2.48060003]
[1772423351882,2.30355874,85.011,84.954,3.69383402]
[1772423351883,2.30361166,84.989,84.954,6.17443405]
[1772423352071,2.30361166,84.989,84.951,41.2002213]
[1772423352072,2.30361166,84.979,84.955,2.76492317]
[1772423352266,2.30361166,84.979,84.957,2.48060003]
[1772423353374,3.65090844,84.97,84.952,11.77133541]
[1772423354471,2.30376682,84.969,84.947,11.77196088]
[1772423354682,2.30376682,84.959,84.935,2.49103708]
[1772423354881,2.30376682,84.959,84.936,2.63319865]
[1772423355180,2.30376682,84.959,84.89,12.92343271]
[1772423355181,2.30381735,84.949,84.915,2.49103708]
[1772423355371,2.30381735,84.939,84.916,2.63319865]
[1772423355559,2.30386731,84.947,84.916,2.49103708]
[1772423356367,3.65090844,84.94,84.916,2.49103708]
[1772423356566,3.65090844,84.94,84.917,11.776205]
[1772423356768,3.65090844,84.94,84.918,2.49103708]
[1772423357583,5.94147635,84.94,84.918,2.49103708]
[1772423357788,2.29056791,84.939,84.918,2.49103708]
[1772423358081,2.29056791,84.939,84.919,11.77592764]
[1772423359385,2.29056791,84.939,84.919,14.15392986]
[1772423360189,2.29056791,84.939,84.92,2.37800222]
[1772423360485,2.29056791,84.939,84.899,41.22545612]
[1772423360486,2.29056791,84.929,84.905,0.28432314]
[1772423360681,2.29056791,84.929,84.906,2.37800222]
[1772423361063,3.65090844,84.96,84.906,2.37800222]
[1772423361064,2.29056791,84.935,84.906,2.37800222]
[1772423362188,3.65090844,84.93,84.908,2.37800222]
[1772423364388,3.65090844,84.93,84.91,2.37800222]
[1772423366173,3.65291617,84.93,84.911,14.15503935]
[1772423366482,2.29056791,84.949,84.921,2.37800222]
[1772423367268,3.65291617,84.94,84.921,2.37800222]
[1772423367471,2.29056791,84.939,84.912,2.37800222]
[1772423370694,3.65291617,84.93,84.913,11.77675974]
[1772423371191,3.65291617,84.93,84.914,2.37800222]
[1772423374688,3.65291617,84.93,84.876,61.8]
[1772423374689,2.29056791,84.919,84.892,2.37800222]
[1772423375091,2.29056791,84.919,84.896,2.37800222]
[1772423375472,2.29056791,84.919,84.896,11.7790118]
[1772423375676,2.29056791,84.919,84.897,2.37800222]
[1772423376095,11.77606632,84.918,84.897,2.37800222]
[1772423376394,2.29056791,84.917,84.896,11.7790118]
[1772423376604,2.29056791,84.909,84.892,11.77965058]
[1772423377775,2.29056791,84.909,84.884,2.37800222]
[1772423379197,2.29056791,84.907,84.884,2.37800222]
[1772423379899,3.65291617,84.9,84.884,11.78067965]
[1772423380101,2.29056791,84.915,84.887,2.37800222]
[1772423380920,2.29056791,84.919,84.891,2.37800222]
[1772423382191,2.29056791,84.919,84.893,2.37800222]
[1772423382398,2.29056791,84.929,84.897,2.37800222]
[1772423382783,2.29056791,84.928,84.897,2.37800222]
[1772423384804,3.65291617,84.92,84.899,2.37800222]
[1772423385208,5.94348408,84.92,84.899,2.37800222]
[1772423386805,2.29056791,84.919,84.894,0.28432314]
[1772423387109,3.65291617,84.91,84.895,2.37800222]
[1772423387399,5.95814622,84.91,84.883,2.58153777]
[1772423389205,5.95814622,84.91,84.886,2.29721463]
[1772423389602,5.95814622,84.91,84.887,2.29721463]
[1772423389603,2.30529712,84.909,84.887,2.29721463]
[1772423390304,2.30533008,84.914,84.887,2.29721463]
[1772423390600,11.77538711,84.923,84.894,0.28432314]
[1772423390601,2.30533008,84.923,84.894,0.28432314]
[1772423390803,2.30533008,84.923,84.897,2.29721463]
[1772423391009,11.77452054,84.93,84.901,2.29721463]
[1772423391184,2.30536266,84.933,84.911,2.29721463]
[1772423392385,3.65291617,84.93,84.911,2.29721463]
[1772423392623,2.30536266,84.933,84.911,2.29721463]
[1772423392789,2.30536266,84.933,84.913,2.29721463]
[1772423395930,2.30552002,84.938,84.915,2.29721463]
[1772423396810,2.30555042,84.936,84.915,2.29721463]
[1772423398708,3.65291617,84.95,84.921,2.29721463]
[1772423398902,11.77095026,84.955,84.921,2.29721463]
[1772423399104,2.30561017,84.957,84.931,2.29721463]
[1772423400213,3.65291617,84.96,84.931,2.29721463]
[1772423400600,3.65033566,84.96,84.931,2.29721463]
[1772423400907,3.65033566,84.97,84.941,2.29721463]
[1772423402406,2.30569724,84.968,84.941,2.29721463]
[1772423402806,3.65033566,84.96,84.941,2.29721463]
[1772423403007,2.30572561,84.959,84.941,2.29721463]
[1772423403614,3.65033566,84.96,84.941,2.29721463]
[1772423404526,2.30575364,84.989,84.943,2.29721463]
[1772423404716,2.30575364,84.991,84.961,2.29721463]
[1772423404902,14.07087715,84.998,84.971,2.29721463]
[1772423405223,14.07087715,84.998,84.973,2.29721463]
[1772423405430,2.30578136,84.997,84.973,2.29721463]
[1772423406123,11.76525954,84.996,84.973,2.29721463]
[1772423406315,14.07106829,84.996,84.973,2.29721463]
[1772423407517,2.30583583,84.995,84.973,2.29721463]
[1772423407724,2.30583583,84.989,84.958,2.29721463]
[1772423407908,2.3058626,84.979,84.958,2.29721463]